[Event "3rd BSSZ-Aranytiz IM 2019"]
[Site "Budapest"]
[Date "2019.08.22"]
[Round "6.3"]
[White "Urhegyi, Marton"]
[Black "Martic, Zlatko"]
[Result "1/2-1/2"]
[ECO "B15"]
[WhiteElo "2256"]
[BlackElo "2284"]
[Annotator "NA"]
[PlyCount "152"]
[EventDate "2019.08.16"]
[EventType "tourn"]
[EventCountry "HUN"]
[SourceTitle "playchess.com"]
[Source "ChessBase"]
[SourceQuality "1"]
[TimeControl "40/5400+30:1800+30"]

1. e4 {[%emt 0:00:03]} c6 {[%emt 0:04:17]} 2. d4 {[%emt 0:00:06]} d5 {[%emt 0:00:09]} 3. Nc3 {[%emt 0:00:07]} dxe4 {[%emt 0:00:11]} 4. Nxe4 {[%emt 0:00:03]} Nf6 {[%emt 0:00:34]} 5. Nxf6+ {[%emt 0:00:09]} exf6 {[%emt 0:00:08]} 6. c3 {[%emt 0:00:29]} Bd6 {[%emt 0:00:25]} 7. Bd3 {[%emt 0:00:16]} O-O {[%emt 0:00:41]} 8. Ne2 {[%emt 0:00:10]} Re8 {[%emt 0:01:02]} 9. Qc2 {[%emt 0:00:20]} g6 {[%emt 0:00:25]} 10. Be3 {[%emt 0:13:18]} Nd7 {[%emt 0:00:41]} 11. h4 {[%emt 0:05:51]} Nf8 {[%emt 0:00:20]} 12. h5 {[%emt 0:01:19]} Be6 {[%emt 0:00:48]} 13. O-O-O {[%emt 0:06:50]} a5 {[%emt 0:08:55]} 14. Kb1 {[%emt 0:01:46]} a4 {[%emt 0:00:22]} 15. Nf4 {[%emt 0:10:01]} Bxf4 {[%emt 0:04:45]} 16. Bxf4 {[%emt 0:00:10]} b5 {[%emt 0:00:21]} 17. Be4 {[%emt 0:13:59]} Bd5 {[%emt 0:00:29]} 18. f3 {[%emt 0:02:11]} Ra7 {[%emt 0:05:36]} 19. hxg6 {[%emt 0:17:40]} fxg6 {[%emt 0:00:37]} 20. Rde1 {[%emt 0:08:51]} Rae7 {[%emt 0:00:48]} 21. Bg3 {[%emt 0:00:51]} Kg7 {[%emt 0:08:15]} 22. Bxd5 {[%emt 0:05:26]} Qxd5 {[%emt 0:00:16]} 23. Rxe7+ {[%emt 0:00:08]} Rxe7 {[%emt 0:00:06]} 24. Re1 {[%emt 0:00:14]} Rxe1+ {[%emt 0:04:35]} 25. Bxe1 {[%emt 0:00:02]} g5 {[%emt 0:00:33]} 26. b3 {[%emt 0:02:00]} axb3 {[%emt 0:00:37]} 27. axb3 {[%emt 0:01:03]} Ng6 {[%emt 0:00:43]} 28. Kb2 {[%emt 0:03:22]} h5 {[%emt 0:06:58]} 29. Bf2 {[%emt 0:01:14]} h4 {[%emt 0:02:53]} 30. c4 {[%emt 0:04:00]} bxc4 {[%emt 0:00:21]} 31. bxc4 {[%emt 0:00:05]} Qe6 {[%emt 0:00:12]} 32. Bg1 {[%emt 0:01:17]} Nf4 {[%emt 0:00:54]} 33. Bh2 {[%emt 0:00:52]} Qe3 {[%emt 0:00:43]} 34. Bxf4 {[%emt 0:01:04]} Qxd4+ {[%emt 0:00:20]} 35. Kb3 {[%emt 0:00:19]} Qxf4 {[%emt 0:00:54]} 36. Qd3 {[%emt 0:00:14]} Qb8+ {[%emt 0:01:54]} 37. Kc3 {[%emt 0:00:32]} Qe5+ {[%emt 0:00:25]} 38. Kb4 {[%emt 0:01:04]} Qe7+ {[%emt 0:07:55]} 39. c5 {[%emt 0:00:15]} Qe1+ {[%emt 0:01:22]} 40. Kc4 {[%emt 0:00:00]} Qc1+ {[%emt 0:00:00]} 41. Kb4 {[%emt 0:05:51]} Qb2+ {[%emt 0:08:04]} 42. Ka5 {[%emt 0:00:45]} Kh6 {[%emt 0:01:31]} 43. Qf1 {[%emt 0:03:38]} Qb7 {[%emt 0:09:04]} 44. Qe2 {[%emt 0:11:28]} Qa7+ {[%emt 0:01:24]} 45. Kb4 {[%emt 0:00:14]} Kg7 {[%emt 0:04:48]} 46. Qe6 {[%emt 0:08:31]} Qb8+ {[%emt 0:00:33]} 47. Ka3 {[%emt 0:00:32]} Qb7 {[%emt 0:00:13]} 48. Qd6 {[%emt 0:01:30]} Kf7 {[%emt 0:01:04]} 49. Ka4 {[%emt 0:00:52]} Qa6+ {[%emt 0:00:15]} 50. Kb4 {[%emt 0:00:19]} Qb5+ {[%emt 0:00:09]} 51. Ka3 {[%emt 0:00:15]} Kg6 {[%emt 0:00:23]} 52. Qe7 {[%emt 0:01:21]} Qd3+ {[%emt 0:01:38]} 53. Kb4 {[%emt 0:00:21]} Qd2+ {[%emt 0:07:01]} 54. Ka4 {[%emt 0:00:18]} Qa2+ {[%emt 0:21:20]} 55. Kb4 {[%emt 0:00:01]} Qb2+ {[%emt 0:00:19]} 56. Ka4 {[%emt 0:00:10]} Qe5 {[%emt 0:00:29]} 57. Qf8 {[%emt 0:01:29]} Kf5 {[%emt 0:00:31]} 58. Ka5 {[%emt 0:02:18]} Kf4 {[%emt 0:03:38]} 59. Qd6 {[%emt 0:00:17]} Kg3 {[%emt 0:01:12]} 60. Qxc6 {[%emt 0:00:08]} Qa1+ {[%emt 0:00:31]} 61. Kb6 {[%emt 0:01:55]} Qb2+ {[%emt 0:00:58]} 62. Ka7 {[%emt 0:00:32]} Qa3+ {[%emt 0:02:08]} 63. Kb6 {[%emt 0:00:31]} Qb4+ {[%emt 0:00:17]} 64. Ka6 {[%emt 0:00:27]} Kxg2 {[%emt 0:00:33]} 65. f4+ {[%emt 0:00:29]} Kg3 {[%emt 0:00:27]} 66. fxg5 {[%emt 0:00:33]} fxg5 {[%emt 0:00:39]} 67. Qd6+ {[%emt 0:00:08]} Qf4 {[%emt 0:01:09]} 68. Qd3+ {[%emt 0:00:25]} Kg2 {[%emt 0:00:35]} 69. c6 {[%emt 0:00:27]} h3 {[%emt 0:00:40]} 70. Qc2+ {[%emt 0:00:17]} Kg3 {[%emt 0:03:24]} 71. c7 {[%emt 0:00:49]} Qd6+ {[%emt 0:00:32]} 72. Ka7 {[%emt 0:00:40]} Qa3+ {[%emt 0:00:26]} 73. Kb8 {[%emt 0:00:28]} Qb4+ {[%emt 0:00:09]} 74. Ka7 {[%emt 0:00:22]} Qa5+ {[%emt 0:00:16]} 75. Kb7 {[%emt 0:00:44]} Qb5+ {[%emt 0:04:53]} 76. Ka7 {[%emt 0:00:08]} Qa5+ 1/2-1/2

[Event "3rd BSSZ-Aranytiz IM 2019"]
[Site "Budapest"]
[Date "2019.08.22"]
[Round "6.4"]
[White "Hamblok, Roel"]
[Black "Havanecz, Bianka"]
[Result "1-0"]
[ECO "D02"]
[WhiteElo "2261"]
[BlackElo "2281"]
[Annotator "NA"]
[PlyCount "131"]
[EventDate "2019.08.16"]
[EventType "tourn"]
[EventCountry "HUN"]
[SourceTitle "playchess.com"]
[Source "ChessBase"]
[SourceQuality "1"]
[TimeControl "40/5400+30:1800+30"]

1. d4 {[%emt 0:00:04]} d5 {[%emt 0:00:05]} 2. Nf3 {[%emt 0:00:06]} Nf6 {[%emt 0:00:13]} 3. g3 {[%emt 0:00:08]} e6 {[%emt 0:00:08]} 4. Bg2 {[%emt 0:00:06]} Be7 {[%emt 0:00:06]} 5. O-O {[%emt 0:00:07]} O-O {[%emt 0:00:03]} 6. c4 {[%emt 0:00:46]} dxc4 {[%emt 0:00:05]} 7. Qc2 {[%emt 0:00:03]} a6 {[%emt 0:00:04]} 8. a4 {[%emt 0:00:10]} Bd7 {[%emt 0:12:48]} 9. Qxc4 {[%emt 0:01:46]} Bc6 {[%emt 0:01:20]} 10. Bg5 {[%emt 0:01:49]} Nbd7 {[%emt 0:04:24]} 11. Nc3 {[%emt 0:10:17]} h6 {[%emt 0:00:28]} 12. Bxf6 {[%emt 0:02:50]} Nxf6 {[%emt 0:00:07]} 13. Rfe1 {[%emt 0:07:42]} Ne4 {[%emt 0:03:47]} 14. Qd3 {[%emt 0:05:45]} Nxc3 {[%emt 0:01:34]} 15. bxc3 {[%emt 0:02:26]} Bf6 {[%emt 0:01:29]} 16. e4 {[%emt 0:06:43]} b5 {[%emt 0:03:19]} 17. e5 {[%emt 0:05:58]} Be7 {[%emt 0:00:06]} 18. Ng5 {[%emt 0:00:09]} hxg5 {[%emt 0:01:11]} 19. Bxc6 {[%emt 0:00:14]} Rb8 {[%emt 0:00:03]} 20. axb5 {[%emt 0:01:59]} axb5 {[%emt 0:00:05]} 21. Bxb5 {[%emt 0:02:54]} c5 {[%emt 0:00:09]} 22. Bc4 {[%emt 0:01:07]} cxd4 {[%emt 0:01:03]} 23. cxd4 {[%emt 0:02:16]} Rb2 {[%emt 0:00:14]} 24. Rab1 {[%emt 0:09:45]} Rxb1 {[%emt 0:00:06]} 25. Rxb1 {[%emt 0:00:05]} Qc7 {[%emt 0:00:21]} 26. Qe2 {[%emt 0:04:25]} Rd8 {[%emt 0:03:40]} 27. Rd1 {[%emt 0:01:10]} Qc6 {[%emt 0:00:50]} 28. Ba2 {[%emt 0:09:58]} g6 {[%emt 0:07:43]} 29. d5 {[%emt 0:04:18]} exd5 {[%emt 0:00:38]} 30. Qf3 {[%emt 0:00:27]} Rf8 {[%emt 0:05:04]} 31. Bxd5 {[%emt 0:01:04]} Qb6 {[%emt 0:00:05]} 32. Ra1 {[%emt 0:09:29]} Kg7 {[%emt 0:04:47]} 33. Ra8 {[%emt 0:03:12]} Qb1+ {[%emt 0:00:06]} 34. Kg2 {[%emt 0:00:06]} Qf5 {[%emt 0:00:09]} 35. Qxf5 {[%emt 0:00:32]} gxf5 {[%emt 0:00:05]} 36. Ra7 {[%emt 0:00:04]} Re8 {[%emt 0:00:34]} 37. e6 {[%emt 0:03:50]} fxe6 {[%emt 0:04:22]} 38. Bc6 {[%emt 0:00:13]} Kf8 {[%emt 0:00:04]} 39. Bxe8 {[%emt 0:00:05]} Kxe8 {[%emt 0:00:03]} 40. h3 {[%emt 0:00:00]} Kf7 {[%emt 0:00:00]} 41. Kf3 {[%emt 0:01:21]} Kf6 {[%emt 0:03:26]} 42. Rb7 {[%emt 0:00:45]} Bc5 {[%emt 0:00:21]} 43. Rb5 {[%emt 0:00:23]} Bd4 {[%emt 0:00:47]} 44. Ke2 {[%emt 0:00:23]} Ba1 {[%emt 0:01:00]} 45. f3 {[%emt 0:01:28]} Be5 {[%emt 0:00:18]} 46. g4 {[%emt 0:00:26]} Bg3 {[%emt 0:02:00]} 47. Kd3 {[%emt 0:00:12]} Bf2 {[%emt 0:00:14]} 48. Kc4 {[%emt 0:00:27]} fxg4 {[%emt 0:00:38]} 49. hxg4 {[%emt 0:00:16]} Bg1 {[%emt 0:00:19]} 50. Kb4 {[%emt 0:01:15]} Be3 {[%emt 0:01:07]} 51. Ka5 {[%emt 0:01:26]} Ke7 {[%emt 0:00:06]} 52. Ka6 {[%emt 0:00:57]} Kd6 {[%emt 0:02:27]} 53. Kb7 {[%emt 0:00:41]} Bf4 {[%emt 0:03:06]} 54. Kc8 {[%emt 0:00:32]} Kc6 {[%emt 0:00:13]} 55. Ra5 {[%emt 0:00:25]} Kd6 {[%emt 0:04:08]} 56. Kd8 {[%emt 0:01:18]} e5 {[%emt 0:00:07]} 57. Ke8 {[%emt 0:00:26]} Ke6 {[%emt 0:00:04]} 58. Kf8 {[%emt 0:01:57]} Be3 {[%emt 0:00:11]} 59. Kg7 {[%emt 0:00:30]} Bf4 {[%emt 0:00:06]} 60. Kg6 {[%emt 0:00:09]} Bc1 {[%emt 0:00:15]} 61. Ra6+ {[%emt 0:00:19]} Kd5 {[%emt 0:00:11]} 62. Kf5 {[%emt 0:00:19]} Bf4 {[%emt 0:00:10]} 63. Ra4 {[%emt 0:01:42]} Bd2 {[%emt 0:01:06]} 64. Re4 {[%emt 0:01:38]} Bf4 {[%emt 0:00:14]} 65. Kf6 {[%emt 0:01:12]} Bd2 {[%emt 0:00:24]} 66. Rxe5+ {[%emt 0:00:08]} 1-0

[Event "3rd BSSZ-Aranytiz IM 2019"]
[Site "Budapest"]
[Date "2019.08.22"]
[Round "6.5"]
[White "Persanyi, Barnabas"]
[Black "Farago, Sandor"]
[Result "1/2-1/2"]
[ECO "A04"]
[WhiteElo "2399"]
[BlackElo "2211"]
[Annotator "NA"]
[PlyCount "85"]
[EventDate "2019.08.16"]
[EventType "tourn"]
[EventCountry "HUN"]
[SourceTitle "playchess.com"]
[Source "ChessBase"]
[SourceQuality "1"]
[TimeControl "40/5400+30:1800+30"]

1. Nf3 {[%emt 0:00:24]} c5 {[%emt 0:01:15]} 2. c4 {[%emt 0:00:22]} Nf6 {[%emt 0:00:36]} 3. g3 {[%emt 0:01:04]} b6 {[%emt 0:00:19]} 4. Bg2 {[%emt 0:00:53]} Bb7 {[%emt 0:00:06]} 5. O-O {[%emt 0:01:10]} g6 {[%emt 0:00:37]} 6. b3 {[%emt 0:01:31]} Bg7 {[%emt 0:00:32]} 7. Bb2 {[%emt 0:00:30]} O-O {[%emt 0:01:16]} 8. Nc3 {[%emt 0:03:49]} Nc6 {[%emt 0:07:48]} 9. d4 {[%emt 0:01:39]} Nxd4 {[%emt 0:00:39]} 10. Nxd4 {[%emt 0:00:20]} Bxg2 {[%emt 0:00:06]} 11. Kxg2 {[%emt 0:00:47]} cxd4 {[%emt 0:00:07]} 12. Qxd4 {[%emt 0:00:24]} d6 {[%emt 0:01:41]} 13. f3 {[%emt 0:14:11]} Ne8 {[%emt 0:13:06]} 14. Qd2 {[%emt 0:03:02]} Nc7 {[%emt 0:00:18]} 15. Rad1 {[%emt 0:06:52]} Rc8 {[%emt 0:05:15]} 16. h4 {[%emt 0:05:31]} Qe8 {[%emt 0:08:57]} 17. h5 {[%emt 0:08:43]} gxh5 {[%emt 0:06:16]} 18. Rh1 {[%emt 0:02:03]} f5 {[%emt 0:00:15]} 19. Qg5 {[%emt 0:11:06]} h6 {[%emt 0:10:14]} 20. Qxh5 {[%emt 0:01:33]} Qxh5 {[%emt 0:00:44]} 21. Rxh5 {[%emt 0:00:08]} Rf7 {[%emt 0:10:31]} 22. Na4 {[%emt 0:03:20]} b5 {[%emt 0:05:17]} 23. Bxg7 {[%emt 0:01:03]} Kxg7 {[%emt 0:00:15]} 24. cxb5 {[%emt 0:01:52]} Nxb5 {[%emt 0:01:07]} 25. Rd5 {[%emt 0:01:52]} a6 {[%emt 0:01:37]} 26. Rd2 {[%emt 0:04:24]} Rc6 {[%emt 0:05:10]} 27. Nb2 {[%emt 0:01:38]} Na3 {[%emt 0:03:44]} 28. Nd3 {[%emt 0:01:01]} e6 {[%emt 0:02:38]} 29. Nf4 {[%emt 0:02:42]} d5 {[%emt 0:00:18]} 30. e4 {[%emt 0:02:14]} dxe4 {[%emt 0:02:20]} 31. fxe4 {[%emt 0:00:13]} Nc2 {[%emt 0:02:53]} 32. Nxe6+ {[%emt 0:04:59]} Rxe6 {[%emt 0:00:05]} 33. Rxc2 {[%emt 0:00:08]} fxe4 {[%emt 0:00:05]} 34. Re2 {[%emt 0:01:46]} e3 {[%emt 0:05:15]} 35. Rd5 {[%emt 0:05:46]} Kg6 {[%emt 0:01:18]} 36. Rd3 {[%emt 0:00:42]} Rfe7 {[%emt 0:00:10]} 37. Kf3 {[%emt 0:00:51]} Rf6+ {[%emt 0:00:22]} 38. Kg2 {[%emt 0:00:29]} Rfe6 {[%emt 0:00:06]} 39. b4 {[%emt 0:02:12]} Kg5 {[%emt 0:01:21]} 40. a4 {[%emt 0:00:00]} Re4 {[%emt 0:00:00]} 41. b5 {[%emt 0:06:22]} Rxa4 {[%emt 0:04:56]} 42. bxa6 {[%emt 0:00:42]} Rxa6 {[%emt 0:00:11]} 43. Rdxe3 {[%emt 0:00:05]} 1/2-1/2

[Event "3rd BSSZ-Aranytiz IM 2019"]
[Site "Budapest"]
[Date "2019.08.23"]
[Round "7.1"]
[White "Farago, Sandor"]
[Black "Juhasz, Barbara"]
[Result "0-1"]
[ECO "B30"]
[WhiteElo "2211"]
[BlackElo "2157"]
[Annotator "NA"]
[PlyCount "131"]
[EventDate "2019.08.16"]
[EventType "tourn"]
[EventCountry "HUN"]
[SourceTitle "playchess.com"]
[Source "ChessBase"]
[SourceQuality "1"]
[TimeControl "40/5400+30:1800+30"]

1. e4 {[%emt 0:00:05]} c5 {[%emt 0:00:11]} 2. Nf3 {[%emt 0:00:13]} Nc6 {[%emt 0:00:14]} 3. Bc4 {[%emt 0:03:07]} e6 {[%emt 0:03:50]} 4. Nc3 {[%emt 0:05:10]} d6 {[%emt 0:04:58]} 5. O-O {[%emt 0:03:47]} Nf6 {[%emt 0:00:15]} 6. d4 {[%emt 0:01:54]} cxd4 {[%emt 0:00:04]} 7. Nxd4 {[%emt 0:00:07]} Be7 {[%emt 0:03:17]} 8. Be3 {[%emt 0:07:51]} a6 {[%emt 0:13:03]} 9. a4 {[%emt 0:08:39]} Qc7 {[%emt 0:00:24]} 10. Nxc6 {[%emt 0:05:14]} bxc6 {[%emt 0:05:14]} 11. Be2 {[%emt 0:06:06]} a5 {[%emt 0:04:44]} 12. f4 {[%emt 0:03:21]} O-O {[%emt 0:07:12]} 13. Kh1 {[%emt 0:06:50]} Rb8 {[%emt 0:14:45]} 14. b3 {[%emt 0:04:50]} d5 {[%emt 0:02:28]} 15. e5 {[%emt 0:02:22]} Nd7 {[%emt 0:00:03]} 16. Bd3 {[%emt 0:02:54]} Bc5 {[%emt 0:02:00]} 17. Bd2 {[%emt 0:06:28]} Bb4 {[%emt 0:11:41]} 18. Rf3 {[%emt 0:01:40]} f5 {[%emt 0:02:08]} 19. exf6 {[%emt 0:00:35]} Nxf6 {[%emt 0:00:25]} 20. Qe2 {[%emt 0:00:48]} Bd6 {[%emt 0:02:30]} 21. Raf1 {[%emt 0:03:40]} Bd7 {[%emt 0:00:47]} 22. h3 {[%emt 0:00:59]} e5 {[%emt 0:04:28]} 23. fxe5 {[%emt 0:00:09]} Bxe5 {[%emt 0:00:03]} 24. Qf2 {[%emt 0:00:19]} Be6 {[%emt 0:03:39]} 25. Ne2 {[%emt 0:04:26]} c5 {[%emt 0:02:02]} 26. Nf4 {[%emt 0:01:10]} Bf7 {[%emt 0:00:16]} 27. Qh4 {[%emt 0:01:03]} c4 {[%emt 0:01:01]} 28. Bf5 {[%emt 0:00:40]} Rfe8 {[%emt 0:04:14]} 29. Rg3 {[%emt 0:02:07]} c3 {[%emt 0:02:17]} 30. Bc1 {[%emt 0:00:21]} Rb4 {[%emt 0:00:01]} 31. Rg5 {[%emt 0:05:36]} g6 {[%emt 0:02:04]} 32. Qf2 {[%emt 0:11:04]} Ne4 {[%emt 0:00:10]} 33. Bxe4 {[%emt 0:00:11]} Rxe4 {[%emt 0:00:21]} 34. Nh5 {[%emt 0:00:46]} Bd4 {[%emt 0:02:29]} 35. Nf6+ {[%emt 0:00:34]} Bxf6 {[%emt 0:00:43]} 36. Qxf6 {[%emt 0:00:01]} Re1 {[%emt 0:01:02]} 37. Rg4 {[%emt 0:00:17]} Qe7 {[%emt 0:01:47]} 38. Qf3 {[%emt 0:02:09]} Rxf1+ {[%emt 0:00:58]} 39. Qxf1 {[%emt 0:00:01]} Qe1 {[%emt 0:00:37]} 40. Kg1 {[%emt 0:00:00]} Re2 {[%emt 0:00:00]} 41. Bh6 {[%emt 0:00:47]} Qxf1+ {[%emt 0:03:31]} 42. Kxf1 {[%emt 0:00:05]} Rxc2 {[%emt 0:00:02]} 43. b4 {[%emt 0:01:09]} axb4 {[%emt 0:01:22]} 44. Rxb4 {[%emt 0:00:05]} Rb2 {[%emt 0:00:02]} 45. Rb5 {[%emt 0:01:39]} Rxb5 {[%emt 0:16:38]} 46. axb5 {[%emt 0:00:33]} d4 {[%emt 0:00:03]} 47. b6 {[%emt 0:01:21]} Bd5 {[%emt 0:06:10]} 48. Ke2 {[%emt 0:00:42]} Be4 {[%emt 0:00:01]} 49. b7 {[%emt 0:00:29]} Bxb7 {[%emt 0:00:30]} 50. Kd3 {[%emt 0:00:07]} Bxg2 {[%emt 0:00:03]} 51. h4 {[%emt 0:00:13]} Bh3 {[%emt 0:00:46]} 52. Kxd4 {[%emt 0:00:29]} c2 {[%emt 0:00:01]} 53. Ke5 {[%emt 0:01:07]} Kf7 {[%emt 0:00:04]} 54. Bc1 {[%emt 0:01:03]} Bg4 {[%emt 0:00:33]} 55. Bd2 {[%emt 0:00:21]} Be2 {[%emt 0:00:12]} 56. Bc1 {[%emt 0:00:10]} Bh5 {[%emt 0:00:26]} 57. Bg5 {[%emt 0:00:37]} Bd1 {[%emt 0:00:31]} 58. Bc1 {[%emt 0:00:15]} Ke7 {[%emt 0:00:10]} 59. Bg5+ {[%emt 0:04:18]} Kd7 {[%emt 0:00:05]} 60. Kf6 {[%emt 0:00:09]} Kd6 {[%emt 0:00:29]} 61. Kg7 {[%emt 0:00:17]} Kd5 {[%emt 0:00:29]} 62. Kxh7 {[%emt 0:00:11]} Bh5 {[%emt 0:00:03]} 63. Kg7 {[%emt 0:04:11]} Ke4 {[%emt 0:00:14]} 64. Kf6 {[%emt 0:00:09]} Kd3 {[%emt 0:00:04]} 65. Ke5 {[%emt 0:00:06]} Ke2 {[%emt 0:00:12]} 66. Ke6 0-1

[Event "3rd BSSZ-Aranytiz IM 2019"]
[Site "Budapest"]
[Date "2019.08.23"]
[Round "7.2"]
[White "Havanecz, Bianka"]
[Black "Persanyi, Barnabas"]
[Result "0-1"]
[ECO "E32"]
[WhiteElo "2281"]
[BlackElo "2399"]
[Annotator "NA"]
[PlyCount "74"]
[EventDate "2019.08.16"]
[EventType "tourn"]
[EventCountry "HUN"]
[SourceTitle "playchess.com"]
[Source "ChessBase"]
[SourceQuality "1"]
[TimeControl "40/5400+30:1800+30"]

1. d4 {[%emt 0:00:01]} Nf6 {[%emt 0:00:24]} 2. c4 {[%emt 0:00:05]} e6 {[%emt 0:00:32]} 3. Nc3 {[%emt 0:00:11]} Bb4 {[%emt 0:00:41]} 4. Qc2 {[%emt 0:00:06]} b6 {[%emt 0:00:34]} 5. e4 {[%emt 0:00:40]} c5 {[%emt 0:00:53]} 6. d5 {[%emt 0:00:05]} Qe7 {[%emt 0:01:18]} 7. Nge2 {[%emt 0:00:07]} d6 {[%emt 0:10:30]} 8. Bg5 {[%emt 0:01:44]} h6 {[%emt 0:03:21]} 9. Bd2 {[%emt 0:01:13]} a6 {[%emt 0:05:53]} 10. h3 {[%emt 0:01:09]} b5 {[%emt 0:07:26]} 11. O-O-O {[%emt 0:03:42]} e5 {[%emt 0:17:24]} 12. g4 {[%emt 0:01:19]} Nbd7 {[%emt 0:04:39]} 13. Ng3 {[%emt 0:02:09]} Nb6 {[%emt 0:04:39]} 14. f4 {[%emt 0:07:20]} Bd7 {[%emt 0:10:33]} 15. Nf5 {[%emt 0:08:17]} Bxf5 {[%emt 0:00:30]} 16. exf5 {[%emt 0:00:05]} Bxc3 {[%emt 0:04:47]} 17. Bxc3 {[%emt 0:01:48]} b4 {[%emt 0:00:59]} 18. Bd2 {[%emt 0:00:32]} Nfd7 {[%emt 0:01:39]} 19. Re1 {[%emt 0:03:22]} Kd8 {[%emt 0:04:03]} 20. Bg2 {[%emt 0:01:30]} Kc7 {[%emt 0:05:34]} 21. h4 {[%emt 0:01:59]} a5 {[%emt 0:01:32]} 22. g5 {[%emt 0:00:27]} Rae8 {[%emt 0:01:17]} 23. Rh3 {[%emt 0:05:38]} Qd8 {[%emt 0:02:10]} 24. fxe5 {[%emt 0:08:52]} Nxe5 {[%emt 0:00:59]} 25. Re4 {[%emt 0:01:52]} hxg5 {[%emt 0:00:51]} 26. Bxg5 {[%emt 0:01:11]} f6 {[%emt 0:00:26]} 27. Bf4 {[%emt 0:00:55]} Qd7 {[%emt 0:01:10]} 28. Bxe5 {[%emt 0:00:34]} Rxe5 {[%emt 0:00:56]} 29. Rxe5 {[%emt 0:00:06]} fxe5 {[%emt 0:00:56]} 30. b3 {[%emt 0:02:28]} Qe7 {[%emt 0:01:29]} 31. Qf2 {[%emt 0:01:19]} a4 {[%emt 0:00:39]} 32. Be4 {[%emt 0:00:56]} a3 {[%emt 0:00:47]} 33. Kd2 {[%emt 0:01:42]} Nd7 {[%emt 0:00:36]} 34. Ke3 {[%emt 0:02:23]} Qf6 {[%emt 0:00:39]} 35. Rh1 {[%emt 0:01:15]} Qh6+ {[%emt 0:01:07]} 36. Kd3 {[%emt 0:00:09]} Nf6 {[%emt 0:00:25]} 37. Qg3 {[%emt 0:01:40]} Qd2+ {[%emt 0:00:18]} 0-1

[Event "3rd BSSZ-Aranytiz IM 2019"]
[Site "Budapest"]
[Date "2019.08.23"]
[Round "7.3"]
[White "Martic, Zlatko"]
[Black "Hamblok, Roel"]
[Result "0-1"]
[ECO "A01"]
[WhiteElo "2284"]
[BlackElo "2261"]
[Annotator "NA"]
[PlyCount "66"]
[EventDate "2019.08.16"]
[EventType "tourn"]
[EventCountry "HUN"]
[SourceTitle "playchess.com"]
[Source "ChessBase"]
[SourceQuality "1"]
[TimeControl "40/5400+30:1800+30"]

1. b3 {[%emt 0:04:58]} d5 {[%emt 0:01:00]} 2. Bb2 {[%emt 0:00:10]} Bf5 {[%emt 0:00:22]} 3. g3 {[%emt 0:00:32]} e6 {[%emt 0:00:19]} 4. Bg2 {[%emt 0:00:13]} Nf6 {[%emt 0:00:14]} 5. Nf3 {[%emt 0:01:33]} h6 {[%emt 0:00:59]} 6. O-O {[%emt 0:00:46]} Be7 {[%emt 0:01:07]} 7. d4 {[%emt 0:01:04]} O-O {[%emt 0:00:43]} 8. c4 {[%emt 0:00:36]} c6 {[%emt 0:00:24]} 9. Nc3 {[%emt 0:01:39]} Nbd7 {[%emt 0:04:00]} 10. Ne5 {[%emt 0:03:34]} Bh7 {[%emt 0:11:03]} 11. Nd3 {[%emt 0:09:49]} Qa5 {[%emt 0:15:05]} 12. c5 {[%emt 0:06:35]} Qc7 {[%emt 0:03:20]} 13. Bc1 {[%emt 0:01:32]} e5 {[%emt 0:11:26]} 14. dxe5 {[%emt 0:02:27]} Nxe5 {[%emt 0:01:22]} 15. Bf4 {[%emt 0:00:21]} Nfd7 {[%emt 0:02:14]} 16. e4 {[%emt 0:10:26]} g5 {[%emt 0:09:49]} 17. Nxe5 {[%emt 0:03:12]} Nxe5 {[%emt 0:01:21]} 18. exd5 {[%emt 0:01:49]} Bxc5 {[%emt 0:05:24]} 19. Be3 {[%emt 0:02:17]} Bxe3 {[%emt 0:02:02]} 20. fxe3 {[%emt 0:00:02]} Rad8 {[%emt 0:00:46]} 21. e4 {[%emt 0:05:40]} Qb6+ {[%emt 0:04:30]} 22. Kh1 {[%emt 0:00:23]} Qe3 {[%emt 0:00:18]} 23. Rc1 {[%emt 0:04:51]} Nd3 {[%emt 0:03:16]} 24. Rc2 {[%emt 0:00:09]} f5 {[%emt 0:00:41]} 25. Qe2 {[%emt 0:12:59]} Qxe2 {[%emt 0:10:12]} 26. Rxe2 {[%emt 0:00:02]} cxd5 {[%emt 0:06:54]} 27. exf5 {[%emt 0:02:16]} d4 {[%emt 0:03:37]} 28. Nd5 {[%emt 0:00:33]} Rd7 {[%emt 0:00:45]} 29. Rd1 {[%emt 0:04:05]} Bxf5 {[%emt 0:00:33]} 30. Ne7+ {[%emt 0:00:34]} Rxe7 31. Rxe7 {[%emt 0:00:08]} Nf2+ {[%emt 0:00:10]} 32. Kg1 {[%emt 0:02:30]} Nxd1 {[%emt 0:00:04]} 33. Rxb7 {[%emt 0:00:14]} Ne3 {[%emt 0:00:24]} 0-1

[Event "3rd BSSZ-Aranytiz IM 2019"]
[Site "Budapest"]
[Date "2019.08.23"]
[Round "7.4"]
[White "Nemeth, Zoltan"]
[Black "Urhegyi, Marton"]
[Result "1-0"]
[ECO "D10"]
[WhiteElo "2275"]
[BlackElo "2256"]
[Annotator "NA"]
[PlyCount "63"]
[EventDate "2019.08.16"]
[EventType "tourn"]
[EventCountry "HUN"]
[SourceTitle "playchess.com"]
[Source "ChessBase"]
[SourceQuality "1"]
[TimeControl "40/5400+30:1800+30"]

1. d4 {[%emt 0:04:50]} d5 {[%emt 0:00:05]} 2. c4 {[%emt 0:00:08]} c6 {[%emt 0:00:03]} 3. cxd5 {[%emt 0:01:00]} cxd5 {[%emt 0:00:05]} 4. Nc3 {[%emt 0:00:04]} Nf6 {[%emt 0:00:17]} 5. Bf4 {[%emt 0:00:08]} Nc6 {[%emt 0:00:35]} 6. e3 {[%emt 0:00:07]} a6 {[%emt 0:00:05]} 7. Bd3 {[%emt 0:00:42]} Bg4 {[%emt 0:00:23]} 8. f3 {[%emt 0:01:18]} Bh5 {[%emt 0:02:21]} 9. Nge2 {[%emt 0:02:33]} e6 {[%emt 0:00:40]} 10. Rc1 {[%emt 0:02:12]} Bd6 {[%emt 0:01:19]} 11. a3 {[%emt 0:01:45]} O-O {[%emt 0:02:51]} 12. b4 {[%emt 0:04:31]} Bg6 {[%emt 0:10:20]} 13. Bg5 {[%emt 0:03:47]} Bxd3 {[%emt 0:04:20]} 14. Qxd3 {[%emt 0:00:07]} h6 {[%emt 0:00:55]} 15. Bh4 {[%emt 0:00:18]} Be7 {[%emt 0:00:59]} 16. O-O {[%emt 0:04:39]} Nd7 {[%emt 0:02:37]} 17. Bxe7 {[%emt 0:01:20]} Qxe7 {[%emt 0:00:51]} 18. Na4 {[%emt 0:04:48]} Rfc8 {[%emt 0:08:17]} 19. Rc3 {[%emt 0:04:21]} b5 {[%emt 0:04:30]} 20. Rfc1 {[%emt 0:01:05]} Qd6 {[%emt 0:20:09]} 21. Nc5 {[%emt 0:08:03]} Nd8 {[%emt 0:02:31]} 22. e4 {[%emt 0:17:21]} Nb6 {[%emt 0:06:45]} 23. e5 {[%emt 0:02:17]} Qe7 {[%emt 0:01:21]} 24. f4 {[%emt 0:00:39]} f5 {[%emt 0:04:01]} 25. exf6 {[%emt 0:00:46]} gxf6 {[%emt 0:02:28]} 26. Qg6+ {[%emt 0:03:58]} Qg7 {[%emt 0:02:02]} 27. Qe8+ {[%emt 0:04:30]} Kh7 {[%emt 0:00:13]} 28. Nxe6 {[%emt 0:04:19]} Nxe6 {[%emt 0:00:15]} 29. Qxe6 {[%emt 0:00:27]} Re8 {[%emt 0:03:25]} 30. Qxb6 {[%emt 0:03:04]} Rxe2 {[%emt 0:00:13]} 31. Rc7 {[%emt 0:00:17]} Rxg2+ {[%emt 0:00:41]} 32. Kh1 {[%emt 0:00:07]} 1-0